Workbook

Sheet Masque de saisie
B2: FICHE DE SUIVI D'AUDIT | D2: =TODAY() -> 2016-04-06
B4: PREVISIONNEL:
B5: Libellé de l'audit:
B7: Type d'audit:
B9: Organisme:
B11: PNA:
B13: Période:
B15: Responsable de mission:
B17: Auditeurs:
B22: Prestataire:
B24: REALISATION DE L'AUDIT | D24: Réal.
B25: Commande du Diagnostic préalable: | C25: =IF($C$29="","",$C$29-135*(($C$29-$C$43)/135)) ->  | D25: FALSE
B26: Formulation du bon de commande: | C26: =IF($C$29="","",$C$29-105*(($C$29-$C$43)/135)) ->  | D26: FALSE
B27: Remise du rapport provisoire: | C27: =IF($C$29="","",$C$29-45*(($C$29-$C$43)/135)) ->  | D27: FALSE
B28: Phase contradictoire: | C28: =IF($C$29="","",$C$29-30*(($C$29-$C$43)/135)) ->  | D28: FALSE
B29: Rapport définitif: | D29: FALSE
B30: Diffusion à l'organisme: | C30: =IF(C25="","",C29+15) ->  | D30: FALSE
B31: Séminaire de restitution: | C31: =IF(C25="","",C30+15) ->  | D31: FALSE
B32: Projet de plan d'action: | C32: =IF(C25="","",C31+60) ->  | D32: FALSE
B33: Plan d'action validé: | C33: =IF(C25="","",C32+30) ->  | D33: FALSE
B35: SUIVI DES RECOMMANDATIONS:
B36: Suivi SEM1: | C36: =IF(C25="","",C33+180) ->  | D36: FALSE
B37: Suivi SEM2: | C37: =IF(C25="","",C36+180) ->  | D37: FALSE
B38: Suivi SEM3: | C38: =IF(C25="","",C37+180) ->  | D38: FALSE
B39: Suivi SEM4: | C39: =IF(C25="","",C38+180) ->  | D39: FALSE
B40: Suivi SEM5: | C40: =IF(C25="","",C39+180) ->  | D40: FALSE
B41: Suivi SEM6: | C41: =IF(C25="","",C40+180) ->  | D41: FALSE
C43: 12/03/2015

Sheet Recap
A1: Descriptif | K1: Niveau d'avancement | T1: Suivi des recommandations
A2: Dénomination de l'audit | B2: Type d'audit | C2: Organisme audité | D2: PNA | E2: Période | F2: Prestataire | G2: Directeurs de Mission | H2: Auditeurs | I2: Date de début de mission | J2: Date de fin de mission | K2: Analyse préalable | L2: Formulation BdC | M2: Remise du rapport provisoire | N2: Contradictoire | O2: Rapport définitif | P2: Diffusion | Q2: Seminaire de restitution | R2: Projet du plan d'action | S2: Validation du plan | T2: Suivi des reco Semestre 1 | U2: Suivi des reco Semestre 2 | V2: Suivi des reco Semestre 3 | W2: Suivi des reco Semestre 4 | X2: Suivi des reco Semestre 5 | Y2: Suivi des reco Semestre 6 | Z2: N.SEMAINE
A3: a | B3: a | C3: a | D3: a | E3: a | F3: a | G3: a | H3: a | I3: 2012-03-01 | J3: 2012-07-01 | K3: =Tableau5[Date de début de mission] -> 2012-03-01 | L3: =Tableau5[Rapport définitif]-105*((Tableau5[Rapport définitif]-Tableau5[Analyse préalable])/135) -> 2012-03-28T02:40:00 | M3: =Tableau5[Rapport définitif]-45*((Tableau5[Rapport définitif]-Tableau5[Analyse préalable])/135) -> 2012-05-21T08:00:00 | N3: =Tableau5[Rapport définitif]-30*((Tableau5[Rapport définitif]-Tableau5[Analyse préalable])/135) -> 2012-06-03T21:20:00 | O3: =Tableau5[Date de fin de mission] -> 2012-07-01 | P3: =Tableau5[Rapport définitif]+15 -> 2012-07-16 | Q3: =Tableau5[Diffusion]+15 -> 2012-07-31 | R3: =Tableau5[Seminaire de restitution]+60 -> 2012-09-29 | S3: =Tableau5[Projet du plan d''action]+30 -> 2012-10-29 | T3: =Tableau5[Validation du plan]+180 -> 2013-04-27 | U3: =Tableau5[Suivi des reco Semestre 1]+180 -> 2013-10-24 | V3: =Tableau5[Suivi des reco Semestre 2]+180 -> 2014-04-22 | W3: =Tableau5[Suivi des reco Semestre 3]+180 -> 2014-10-19 | X3: =Tableau5[Suivi des reco Semestre 4]+180 -> 2015-04-17 | Y3: =Tableau5[Suivi des reco Semestre 5]+180 -> 2015-10-14 | Z3: =WEEKNUM(Tableau5[Rapport définitif]) -> 27

Sheet Données
A1: Alain PERROT | E1: CARSAT Alsace Moselle
A2: Alain SPAENLE | E2: CARSAT Aquitaine
A3: Alexandre LE CORRE | E3: CARSAT Auvergne
A4: Arnaud MUDRY | E4: CARSAT Bourgogne Franche-Compté
A5: Corinne GALODE | E5: CARSAT Bretagne
A6: Joel MOSSARD | E6: CARSAT Centre
A7: Loic LE DEUNFF | E7: CARSAT Centre-Ouest
A8: Mathias DIEZ | E8: CARSAT Languedoc Roussillon
A9: Oliviana PIAZZA | E9: CARSAT Midi-Pyrénées
A10: Patricia DAVANNE | E10: CARSAT Nord Est
A11: Pierre Jean BONNOIT | E11: CARSAT Nord Picardie
A12: Said BOUNOUA | E12: CARSAT Normandie
A13: Sylvie ZEILIG | E13: CARSAT Pays de la Loire
E14: CARSAT Rhône-Alpes
A15: Anne Sanchez | E15: CARSAT Sud-Est
A16: Francine SCHERPEREEL | E16: CRAMIF
A17: Jacqueline PEREZ | E17: CCSS Lozère
A18: Jean-Michel VALLET | E18: CGSS Guadeloupe
A19: Externalisé | E19: CGSS Guyane
E20: CGSS Martinique
A21: Structure | E21: CGSS Réunion
A22: Thématique | E22: CICOA
E23: CPAM Charente-Maritime
A24: BearingPoint | E24: CPAM Haute-Loire
A25: Eurogroup | E25: CPAM Ain
A26: Grant Thornton | E26: CPAM Aisne
A27: Interne | E27: CPAM Allier
A28: Mazars | E28: CPAM Alpes-de-Haute-Provence
E29: CPAM Alpes-Maritimes
A30: 1er semestre | E30: CPAM Ardèche
A31: 2eme semestre | E31: CPAM Ardennes
E32: CPAM Ariège
E33: CPAM Artois
E34: CPAM Aube
E35: CPAM Aude
E36: CPAM Aveyron
E37: CPAM Bas-Rhin
E38: CPAM Bayonne
E39: CPAM Boûches-du-Rhône
E40: CPAM Calvados
E41: CPAM Cantal
E42: CPAM Charente
E43: CPAM Cher
E44: CPAM Corrèze
E45: CPAM Corse-du-sud
E46: CPAM Côte d'Armor
E47: CPAM Côte-d'Opale
E48: CPAM Côte-d'Or
E49: CPAM Creuse
E50: CPAM Deux-Sèvres
E51: CPAM Dordogne
E52: CPAM Doubs
E53: CPAM Drôme
E54: CPAM Essonne
E55: CPAM Eure
E56: CPAM Eure-et-Loir
E57: CPAM Finistère
E58: CPAM Flandres-Dunkerque-Armentières
E59: CPAM Gard
E60: CPAM Gers
E61: CPAM Gironde
E62: CPAM Hainaut
E63: CPAM Haute-Corse
E64: CPAM Haute-Garonne
E65: CPAM Haute-Marne
E66: CPAM Hautes-Alpes
E67: CPAM Haute-Saône
E68: CPAM Haute-Savoie
E69: CPAM Hautes-Pyrénées
E70: CPAM Haute-Vienne
E71: CPAM Haut-Rhin
E72: CPAM Hauts-de-Seine
E73: CPAM Hérault
E74: CPAM Ille-et-Vilaine
E75: CPAM Indre
E76: CPAM Indre-et-Loire
E77: CPAM Isère
E78: CPAM Jura
E79: CPAM Landes
E80: CPAM Le Havre
E81: CPAM Lille-Douai
E82: CPAM Loire
E83: CPAM Loire-Atlantique
E84: CPAM Loiret
E85: CPAM Loir-et-Cher
E86: CPAM Lot
E87: CPAM Lot-et-Garonne
E88: CPAM Maine-et-Loir
E89: CPAM Manche
E90: CPAM Marne
E91: CPAM Mayenne
E92: CPAM Meurthe-et-Moselle
E93: CPAM Meuse
E94: CPAM Morbihan
E95: CPAM Moselle
E96: CPAM Nièvre
E97: CPAM Oise
E98: CPAM Orne
E99: CPAM Paris
E100: CPAM Pau
E101: CPAM Puy-de-Dôme
E102: CPAM Pyrénées-Orientales
E103: CPAM Rhône
E104: CPAM Roubaix-Tourcoing
E105: CPAM Rouen-Elbeuf-Dieppe-Seine-Maritime
E106: CPAM Saône-et-Loire
E107: CPAM Sarthe
E108: CPAM Savoie
E109: CPAM Seine-et-Marne
E110: CPAM Seine-Saint-Denis
E111: CPAM Somme
E112: CPAM Tarn
E113: CPAM Tarn-et-Garonne
E114: CPAM Territoire-de-Belfort
E115: CPAM Val-de-Marne
E116: CPAM Val-d'Oise
E117: CPAM Var
E118: CPAM Vaucluse
E119: CPAM Vendée
E120: CPAM Vienne
E121: CPAM Vosges
E122: CPAM Yonne
E123: CPAM Yvelines
E124: CSSM Mayotte
E125: CTI Bretagne - Pays de Loire
E126: CTI Grand Est
E127: CTI PACAC
E128: CTI Rhône Alpes Auvergne
E129: CTI Rouen
E130: CTI Sud Toulouse
E131: DRSM Alsace-Moselle
E132: DRSM Aquitaine
E133: DRSM Auvergne
E134: DRSM Bourgogne-Franche-Comté
E135: DRSM Bretagne
E136: DRSM Centre
E137: DRSM Centre-Ouest
E138: DRSM Guadeloupe
E139: DRSM Guyane
E140: DRSM Ile de France
E141: DRSM La Réunion
E142: DRSM Languedoc-Rousillon
E143: DRSM Martinique
E144: DRSM Midi-Pyrénées
E145: DRSM Nord-Est
E146: DRSM Nord-Picardie
E147: DRSM Normandie
E148: DRSM Pays de Loire
E149: DRSM Rhône-Alpes
E150: DRSM Sud-Est-Corse
E151: GESTIF
E152: UGECAM Alsace
E153: UGECAM Aquitaine
E154: UGECAM Auvergne Limousin Poitou-Charente
E155: UGECAM Bourgogne Franche-Compté
E156: UGECAM Bretagne Pays de la Loire
E157: UGECAM Centre
E158: UGECAM Ile-de-France
E159: UGECAM Languedoc-Roussillon Midi-Pyrénées
E160: UGECAM Nord Pas-de-Calais Picardie
E161: UGECAM Nord-Est
E162: UGECAM Normandie
E163: UGECAM PACA-Corse
E164: UGECAM Rhône Alpes

Sheet Macro-planning
A1: Type d'audit | B1: DM | C1: Semaine fin mission | D1: Auditeurs | AD1: CNA
E2: janvier | J2: février | N2: mars | S2: avril | W2: mai | AA2: juin | AF2: juillet | AJ2: août | AO2: septembre | AS2: octobre | AW2: novembre | BB2: décembre
E3: S1 | F3: S2 | G3: S3 | H3: S4 | I3: S5 | J3: S1 | K3: S2 | L3: S3 | M3: S4 | N3: S1 | O3: S2 | P3: S3 | Q3: S4 | R3: S5 | S3: S1 | T3: S2 | U3: S3 | V3: S4 | W3: S1 | X3: S2 | Y3: S3 | Z3: S4 | AA3: S1 | AB3: S2 | AC3: S3 | AD3: S4 | AE3: S5 | AF3: S1 | AG3: S2 | AH3: S3 | AI3: S4 | AJ3: S1 | AK3: S2 | AL3: S3 | AM3: S4 | AN3: S5 | AO3: S1 | AP3: S2 | AQ3: S3 | AR3: S4 | AS3: S1 | AT3: S2 | AU3: S3 | AV3: S4 | AW3: S1 | AX3: S2 | AY3: S3 | AZ3: S4 | BA3: S5 | BB3: S1 | BC3: S2 | BD3: S3 | BE3: S4
E4: 1 | F4: 2 | G4: 3 | H4: 4 | I4: 5 | J4: 6 | K4: 7 | L4: 8 | M4: 9 | N4: 10 | O4: 11 | P4: 12 | Q4: 13 | R4: 14 | S4: 15 | T4: 16 | U4: 17 | V4: 18 | W4: 19 | X4: 20 | Y4: 21 | Z4: 22 | AA4: 23 | AB4: 24 | AC4: 25 | AD4: 26 | AE4: 27 | AF4: 28 | AG4: 29 | AH4: 30 | AI4: 31 | AJ4: 32 | AK4: 33 | AL4: 34 | AM4: 35 | AN4: 36 | AO4: 37 | AP4: 38 | AQ4: 39 | AR4: 40 | AS4: 41 | AT4: 42 | AU4: 43 | AV4: 44 | AW4: 45 | AX4: 46 | AY4: 47 | AZ4: 48 | BA4: 49 | BB4: 50 | BC4: 51 | BD4: 52 | BE4: 53
B5: =Recap!G3 -> a | C5: =Recap!Z3 -> 27
B7: =IF(Recap!G4="","",Recap!G4) ->  | C7: =IF(Recap!Z4="","",Recap!Z4) -> 
B9: =IF(Recap!G5="","",Recap!G5) ->  | C9: =IF(Recap!Z5="","",Recap!Z5) -> 
B11: =IF(Recap!G6="","",Recap!G6) ->  | C11: =IF(Recap!Z6="","",Recap!Z6) -> 
B13: =IF(Recap!G7="","",Recap!G7) ->  | C13: =IF(Recap!Z7="","",Recap!Z7) -> 
B15: =IF(Recap!G8="","",Recap!G8) ->  | C15: =IF(Recap!Z8="","",Recap!Z8) -> 
B17: =IF(Recap!G9="","",Recap!G9) ->  | C17: =IF(Recap!Z9="","",Recap!Z9) -> 
B19: =IF(Recap!G10="","",Recap!G10) ->  | C19: =IF(Recap!Z10="","",Recap!Z10) -> 
B21: =IF(Recap!G11="","",Recap!G11) ->  | C21: =IF(Recap!Z11="","",Recap!Z11) -> 
B23: =IF(Recap!G12="","",Recap!G12) ->  | C23: =IF(Recap!Z12="","",Recap!Z12) -> 
B25: =IF(Recap!G13="","",Recap!G13) ->  | C25: =IF(Recap!Z13="","",Recap!Z13) -> 
B27: =IF(Recap!G14="","",Recap!G14) ->  | C27: =IF(Recap!Z14="","",Recap!Z14) -> 
B29: =IF(Recap!G15="","",Recap!G15) ->  | C29: =IF(Recap!Z15="","",Recap!Z15) -> 
B31: =IF(Recap!G16="","",Recap!G16) ->  | C31: =IF(Recap!Z16="","",Recap!Z16) -> 
B33: =IF(Recap!G17="","",Recap!G17) ->  | C33: =IF(Recap!Z17="","",Recap!Z17) -> 
B35: =IF(Recap!G18="","",Recap!G18) ->  | C35: =IF(Recap!Z18="","",Recap!Z18) -> 
B37: =IF(Recap!G19="","",Recap!G19) ->  | C37: =IF(Recap!Z19="","",Recap!Z19) -> 
B41: Analyse préalable
B42: Phase terrain
B43: Rapport provisoire
B44: Contradictoire
B45: Rapport définitif
B46: Diffusion
B47: Seminaire de restitution
B48: Projet du plan d'action
B49: Validation du plan d'action

Sheet staff
A1: staff | B1: DM | C1: Prestataire
A2: Alain PERROT | B2: Anne Sanchez | C2: Interne
A3: Alain SPAENLE | B3: Francine Scherpereel | C3: BearingPoint
A4: Alexandre LE CORRE | B4: Jacqueline Perez | C4: Eurogroup
A5: Arnaud MUDRY | B5: Jean-Michel Vallet | C5: Grant Thornton
A6: Corinne GALODE | B6: Externalisé | C6: Mazars
A7: Joel MOSSARD
A8: Loic LE DEUNFF
A9: Mathias DIEZ
A10: Oliviana PIAZZA
A11: Patricia DAVANNE
A12: Pierre Jean BONNOIT
A13: Said BOUNOUA
A14: Sylvie ZEILIG
A15: Teddy FEUILLASTRE

Sheet Saisie budgétaire
B2: FICHE DE SUIVI BUDGETAIRE
B4: Nom de l'organisme: | D4: CARSAT Aquitaine
B6: Catégorie de l'organisme: | C6: =IF(D6="","",IF(D6="CTI Prestations","TableCTIPrestations",IF(D6="CTI Missions Nationales","TableCTIMissionsNationales",IF(D6="CTI Centres Nationaux","TableCTICentreNationaux",CONCATENATE("Table",D6))))) -> TableCARSAT | D6: =IF(D4="","",VLOOKUP(D4,'Code des CPAM'!$A$1:$C$164,3,FALSE)) -> CARSAT
B8: Prestataire:
A10: Choix des modules: | C10: Niveau d'audit
B12: Module 1 | D12: =IF(C12="","",IF(C12="Non audité",0,VLOOKUP(F12,INDIRECT($C$6),4,FALSE))) ->  | F12: =CONCATENATE(B12,C12) -> Module 1
F13: =CONCATENATE(B13,C13) -> 
B14: Module 2 | D14: =IF(C14="","",IF(C14="Non audité",0,VLOOKUP(F14,INDIRECT($C$6),4,FALSE))) ->  | F14: Module 2
B16: Module 3 | D16: =IF(C16="","",IF(C16="Non audité",0,VLOOKUP(F16,INDIRECT($C$6),4,FALSE))) ->  | F16: Module 3
B18: Module 4 | D18: =IF(C18="","",IF(C18="Non audité",0,VLOOKUP(F18,INDIRECT($C$6),4,FALSE))) ->  | F18: Module 4
B20: Module 5 | D20: =IF(C20="","",IF(C20="Non audité",0,VLOOKUP(F20,INDIRECT($C$6),4,FALSE))) ->  | F20: Module 5
B22: Module 6 | D22: =IF(C22="","",IF(C22="Non audité",0,VLOOKUP(F22,INDIRECT($C$6),4,FALSE))) ->  | F22: Module 6
B24: Module 7 | D24: =IF(C24="","",IF(C24="Non audité",0,VLOOKUP(F24,INDIRECT($C$6),4,FALSE))) ->  | F24: Module 7
B26: Module 8 | D26: =IF(C26="","",IF(C26="Non audité",0,VLOOKUP(F26,INDIRECT($C$6),4,FALSE))) ->  | F26: Module 8
B28: Module 9 | D28: =IF(C28="","",IF(C28="Non audité",0,VLOOKUP(F28,INDIRECT($C$6),4,FALSE))) ->  | F28: Module 9
B30: Module 10 | D30: =IF(C30="","",IF(C30="Non audité",0,VLOOKUP(F30,INDIRECT($C$6),4,FALSE))) ->  | F30: Module 10
B32: Module 11 | D32: =IF(C32="","",IF(C32="Non audité",0,VLOOKUP(F32,INDIRECT($C$6),4,FALSE))) ->  | F32: Module 11
B34: Total: | D34: =SUM(D32,D30,D28,D26,D24,D22,D20,D18,D16) -> 0
B36: Frais de mission: | D36: =IF(C36="",0,IF(LEFT(D6,3)="CTI",IF(C37="Oui",'Table de prix_Lot2'!F53*'Saisie budgétaire'!C36,'Table de prix_Lot2'!F54*'Saisie budgétaire'!C36),IF(VLOOKUP(D4,'Code des CPAM'!A1:D164,4,FALSE)="HM",C36*'Table de prix_Lot1'!F119,IF(C37="Oui",IF(VLOOKUP(D4,'Code des CPAM'!A1:D164,4,FALSE)="M",C36*'Table de prix_Lot1'!F112),C36*'Table de prix_Lot1'!F113)))) -> 0
B38: Frais de transport: | D38: =IF(C38="",0,IF(LEFT(D6,3)="CTI",IF(VLOOKUP(D4,'Code des CPAM'!A1:D164,4,FALSE)="M",C38*'Table de prix_Lot2'!F56,C38*'Table de prix_Lot2'!F55),IF(VLOOKUP(D4,'Code des CPAM'!A1:D164,4,FALSE)="IDF",0,IF(VLOOKUP(D4,'Code des CPAM'!A1:D164,4,FALSE)="M",'Saisie budgétaire'!C38*'Table de prix_Lot1'!F115,'Saisie budgétaire'!C38*'Table de prix_Lot1'!F120)))) -> 0
B40: Total engagé: | D40: =D38+D36+D34 -> 0

Sheet Suivi budgétaire
I1: Analyse du retard dans le commencement de l'audit | K1: Analyse de la durée d'audit | M1: Validation rapport provisoire | P1: Validation interne | S1: Diffusion raport | W1: Analyse des équipes d'audit | Z1: Analyse de la qualité | AA1: Analyse des pénalités
A2: Organisme | B2: Classe | C2: Consultant | D2: Montant BC TTC (ENGAGES) | E2: Montant réel TTC | F2: Date d'envoi de la lettre de mission | G2: Date envoi Bon de Commande | H2: Bon de Commande accepté? | I2: Date phase terrain | J2: Date terrain réel | K2: Durée terrain théorique | L2: Durée terrain réel | M2: Date de réception | N2: Date envoi du rapport validé au prestataire | O2: Date d'envoi du rapport modifié à l'organisme par le prestataire | P2: Date de réception rapport définitif | Q2: Date de transmission FG | R2: Retour FG/PF | S2: Date transmission DG | T2: Date de diffusion rapport définitif | U2: Date du séminaire | V2: Délai mission total | W2: Junior (<3) | X2: Senior (3<5) | Y2: Manager (>5) | Z2: Nombre de défauts | AA2: Pénalité sur composition des équipes d'audit | AB2: Pénalité de retard dans le commencement de l'audit | AC2: Pénalité sur la durée d'audit | AD2: Pénalité sur la qualité du rapport | AE2: Colonne1 | AF2: Pénalité max applicable
H3: =IF(G3="","",(IF(((TODAY()-G3)>5),"Oui",""))) ->  | V3: =IF(F3="","",IF(T3="",TODAY()-F3,T3-F3)) ->  | AA3: =IF(AND(W3="",X3="",Y3=""),0,(IF(OR(W3>(0.2*SUM(W3:Y3)),SUM(X3:Y3)<3,Y3<SUM(W3:Y3)*0.3),0.25*C3,0))) -> 0 | AB3: =IF(J3="",0,IF(J3="",0,IF(J3>I3,((J3-I3)*1000),0))) -> 0 | AC3: =IF(L3="",0,IF(L3="",0,IF(L3<K3,(K3-L3)/K3*C3,0))) -> 0 | AD3: =IF(Z3="",0,Z3*350) -> 0 | AE3: =IF(AND(AA3="",AB3="",AC3="",AD3=""),0,IF((AB3+AC3+AA3+AD3)>0.3*C3,0.3*C3,AB3+AC3+AA3+AD3)) -> 0 | AF3: =IF(AE3=0,"",AE3) -> 

Sheet Code des CPAM
A1: CCSS Lozère | B1: C | C1: =IF(B1="A",1,IF(B1="B",2,3)) -> 3 | D1: M
A2: CGSS Guadeloupe | B2: B | C2: =IF(B2="A",1,IF(B2="B",2,3)) -> 2 | D2: HM
A3: CGSS Guyane | B3: B | C3: 2 | D3: HM
A4: CGSS Martinique | B4: B | C4: 2 | D4: HM
A5: CGSS Réunion | B5: B | C5: 2 | D5: HM
A6: CPAM Charente-Maritime | B6: B | C6: 2 | D6: M
A7: CPAM Haute-Loire | B7: D | C7: 3 | D7: M
A8: CPAM Ain | B8: C | C8: 3 | D8: M
A9: CPAM Aisne | B9: C | C9: 3 | D9: M
A10: CPAM Allier | B10: C | C10: 3 | D10: M
A11: CPAM Alpes-de-Haute-Provence | B11: D | C11: 3 | D11: M
A12: CPAM Alpes-Maritimes | B12: B | C12: 2 | D12: M
A13: CPAM Ardèche | B13: D | C13: 3 | D13: M
A14: CPAM Ardennes | B14: D | C14: 3 | D14: M
A15: CPAM Ariège | B15: D | C15: 3 | D15: M
A16: CPAM Artois | B16: B | C16: 2 | D16: M
A17: CPAM Aube | B17: D | C17: 3 | D17: M
A18: CPAM Aude | B18: C | C18: 3 | D18: M
A19: CPAM Aveyron | B19: D | C19: 3 | D19: M
A20: CPAM Bas-Rhin | B20: B | C20: 2 | D20: M
A21: CPAM Bayonne | B21: C | C21: 3 | D21: M
A22: CPAM Boûches-du-Rhône | B22: A | C22: 1 | D22: M
A23: CPAM Calvados | B23: B | C23: 2 | D23: M
A24: CPAM Cantal | B24: D | C24: 3 | D24: M
A25: CPAM Charente | B25: C | C25: 3 | D25: M
A26: CPAM Cher | B26: D | C26: 3 | D26: M
A27: CPAM Corrèze | B27: D | C27: 3 | D27: M
A28: CPAM Corse-du-sud | B28: D | C28: 3 | D28: HM
A29: CPAM Côte-d'Or | B29: C | C29: 3 | D29: M
A30: CPAM Côte-d'Opale | B30: B | C30: 2 | D30: M
A31: CPAM Côtes d'Armor | B31: C | C31: 3 | D31: M
A32: CPAM Creuse | B32: D | C32: 3 | D32: M
A33: CPAM Deux-Sèvres | B33: D | C33: 3 | D33: M
A34: CPAM Dordogne | B34: C | C34: 3 | D34: M
A35: CPAM Doubs | B35: C | C35: 3 | D35: M
A36: CPAM Drôme | B36: C | C36: 3 | D36: M
A37: CPAM Essonne | B37: B | C37: 2 | D37: IDF
A38: CPAM Eure | B38: B | C38: 2 | D38: M
A39: CPAM Eure-et-Loir | B39: C | C39: 3 | D39: M
A40: CPAM Finistère | B40: B | C40: 2 | D40: M
A41: CPAM Flandres-Dunkerque-Armentières | B41: C | C41: 3 | D41: M
A42: CPAM Gard | B42: B | C42: 2 | D42: M
A43: CPAM Gers | B43: D | C43: 3 | D43: M
A44: CPAM Gironde | B44: A | C44: 1 | D44: M
A45: CPAM Hainaut | B45: B | C45: 2 | D45: M
A46: CPAM Haute-Corse | B46: D | C46: 3 | D46: HM
A47: CPAM Haute-Garonne | B47: B | C47: 2 | D47: M
A48: CPAM Haute-Marne | B48: D | C48: 3 | D48: M
A49: CPAM Hautes-Alpes | B49: D | C49: 3 | D49: M
A50: CPAM Haute-Saône | B50: D | C50: 3 | D50: M
A51: CPAM Haute-Savoie | B51: B | C51: 2 | D51: M
A52: CPAM Hautes-Pyrénées | B52: D | C52: 3 | D52: M
A53: CPAM Haute-Vienne | B53: C | C53: 3 | D53: M
A54: CPAM Haut-Rhin | B54: B | C54: 2 | D54: M
A55: CPAM Hauts-de-Seine | B55: A | C55: 1 | D55: IDF
A56: CPAM Hérault | B56: B | C56: 2 | D56: M
A57: CPAM Ille-et-Vilaine | B57: B | C57: 2 | D57: M
A58: CPAM Indre | B58: D | C58: 3 | D58: M
A59: CPAM Indre-et-Loire | B59: B | C59: 2 | D59: M
A60: CPAM Isère | B60: B | C60: 2 | D60: M
A61: CPAM Jura | B61: D | C61: 3 | D61: M
A62: CPAM Landes | B62: C | C62: 3 | D62: M
A63: CPAM Le Havre | B63: C | C63: 3 | D63: M
A64: CPAM Lille-Douai | B64: B | C64: 2 | D64: M
A65: CPAM Loire | B65: B | C65: 2 | D65: M
A66: CPAM Loire-Atlantique | B66: B | C66: =IF(B66="A",1,IF(B66="B",2,3)) -> 2 | D66: M
A67: CPAM Loiret | B67: B | C67: 2 | D67: M
A68: CPAM Loir-et-Cher | B68: D | C68: 3 | D68: M
A69: CPAM Lot | B69: D | C69: 3 | D69: M
A70: CPAM Lot-et-Garonne | B70: D | C70: 3 | D70: M
A71: CPAM Maine-et-Loir | B71: B | C71: 2 | D71: M
A72: CPAM Manche | B72: C | C72: 3 | D72: M
A73: CPAM Marne | B73: C | C73: 3 | D73: M
A74: CPAM Mayenne | B74: D | C74: 3 | D74: M
A75: CPAM Meurthe-et-Moselle | B75: B | C75: 2 | D75: M
A76: CPAM Meuse | B76: D | C76: 3 | D76: M
A77: CPAM Morbihan | B77: B | C77: 2 | D77: M
A78: CPAM Moselle | B78: B | C78: 2 | D78: M
A79: CPAM Nièvre | B79: D | C79: 3 | D79: M
A80: CPAM Oise | B80: B | C80: 2 | D80: M
A81: CPAM Orne | B81: D | C81: 3 | D81: M
A82: CPAM Paris | B82: A | C82: 1 | D82: IDF
A83: CPAM Pau | B83: C | C83: 3 | D83: M
A84: CPAM Puy-de-Dôme | B84: B | C84: 2 | D84: M
A85: CPAM Pyrénées-Orientales | B85: C | C85: 3 | D85: M
A86: CPAM Rhône | B86: A | C86: 1 | D86: M
A87: CPAM Roubaix-Tourcoing | B87: B | C87: 2 | D87: M
A88: CPAM Rouen-Elbeuf-Dieppe-Seine-Maritime | B88: B | C88: 2 | D88: M
A89: CPAM Saône-et-Loire | B89: C | C89: 3 | D89: M
A90: CPAM Sarthe | B90: C | C90: 3 | D90: M
A91: CPAM Savoie | B91: C | C91: 3 | D91: M
A92: CPAM Seine-et-Marne | B92: B | C92: 2 | D92: IDF
A93: CPAM Seine-Saint-Denis | B93: A | C93: 1 | D93: IDF
A94: CPAM Somme | B94: B | C94: 2 | D94: M
A95: CPAM Tarn | B95: C | C95: 3 | D95: M
A96: CPAM Tarn-et-Garonne | B96: D | C96: 3 | D96: M
A97: CPAM Territoire-de-Belfort | B97: D | C97: 3 | D97: M
A98: CPAM Val-de-Marne | B98: B | C98: 2 | D98: IDF
A99: CPAM Val-d'Oise | B99: B | C99: 2 | D99: IDF
A100: CPAM Var | B100: B | C100: 2 | D100: M
A101: CPAM Vaucluse | B101: B | C101: 2 | D101: M
A102: CPAM Vendée | B102: B | C102: 2 | D102: M
A103: CPAM Vienne | B103: C | C103: 3 | D103: M
A104: CPAM Vosges | B104: C | C104: 3 | D104: M
A105: CPAM Yonne | B105: C | C105: 3 | D105: M
A106: CPAM Yvelines | B106: B | C106: 2 | D106: IDF
A107: CSSM Mayotte | B107: B | C107: =IF(B107="A",1,IF(B107="B",2,3)) -> 2 | D107: HM
A108: DRSM Alsace-Moselle | C108: DRSM | D108: M
A109: DRSM Aquitaine | C109: DRSM | D109: M
A110: DRSM Auvergne | C110: DRSM | D110: M
A111: DRSM Bourgogne-Franche-Comté | C111: DRSM | D111: M
A112: DRSM Bretagne | C112: DRSM | D112: M
A113: DRSM Centre | C113: DRSM | D113: M
A114: DRSM Centre-Ouest | C114: DRSM | D114: M
A115: DRSM Guadeloupe | C115: DRSM | D115: HM
A116: DRSM Guyane | C116: DRSM | D116: HM
A117: DRSM Ile de France | C117: DRSM | D117: IDF
A118: DRSM La Réunion | C118: DRSM | D118: HM
A119: DRSM Languedoc-Rousillon | C119: DRSM | D119: M
A120: DRSM Martinique | C120: DRSM | D120: HM
A121: DRSM Midi-Pyrénées | C121: DRSM | D121: M
A122: DRSM Nord-Est | C122: DRSM | D122: M
A123: DRSM Nord-Picardie | C123: DRSM | D123: M
A124: DRSM Normandie | C124: DRSM | D124: M
A125: DRSM Pays de Loire | C125: DRSM | D125: M
A126: DRSM Rhône-Alpes | C126: DRSM | D126: M
A127: DRSM Sud-Est-Corse | C127: DRSM | D127: M
A128: UGECAM Alsace | C128: UGECAM | D128: M
A129: UGECAM Aquitaine | C129: UGECAM | D129: M
A130: UGECAM Auvergne Limousin Poitou-Charente | C130: UGECAM | D130: M
A131: UGECAM Bourgogne Franche-Compté | C131: UGECAM | D131: M
A132: UGECAM Bretagne Pays de la Loire | C132: UGECAM | D132: M
A133: UGECAM Centre | C133: UGECAM | D133: M
A134: UGECAM Ile-de-France | C134: UGECAM | D134: IDF
A135: UGECAM Languedoc-Roussillon Midi-Pyrénées | C135: UGECAM | D135: M
A136: UGECAM Nord Pas-de-Calais Picardie | C136: UGECAM | D136: M
A137: UGECAM Nord-Est | C137: UGECAM | D137: M
A138: UGECAM Normandie | C138: UGECAM | D138: M
A139: UGECAM PACA-Corse | C139: UGECAM | D139: M
A140: UGECAM Rhône Alpes | C140: UGECAM | D140: M
A141: CARSAT Alsace Moselle | C141: CARSAT | D141: M
A142: CARSAT Aquitaine | C142: CARSAT | D142: M
A143: CARSAT Auvergne | C143: CARSAT | D143: M
A144: CARSAT Bourgogne Franche-Compté | C144: CARSAT | D144: M
A145: CARSAT Bretagne | C145: CARSAT | D145: M
A146: CARSAT Centre | C146: CARSAT | D146: M
A147: CARSAT Centre-Ouest | C147: CARSAT | D147: M
A148: CARSAT Languedoc Roussillon | C148: CARSAT | D148: M
A149: CARSAT Midi-Pyrénées | C149: CARSAT | D149: M
A150: CARSAT Nord Est | C150: CARSAT | D150: M
A151: CARSAT Nord Picardie | C151: CARSAT | D151: M
A152: CARSAT Normandie | C152: CARSAT | D152: M
A153: CARSAT Pays de la Loire | C153: CARSAT | D153: M
A154: CARSAT Rhône-Alpes | C154: CARSAT | D154: M
A155: CARSAT Sud-Est | C155: CARSAT | D155: M
A156: CRAMIF | C156: CARSAT | D156: IDF
A157: CTI Bretagne - Pays de Loire | C157: CTI | D157: M | E157: CTIPrestations
A158: CTI Grand Est | C158: CTI | D158: M | E158: CTIMissionsNationales
A159: CTI PACAC | C159: CTI | D159: M | E159: CTICentresNationaux
A160: CTI Rhône Alpes Auvergne | C160: CTI | D160: M
A161: CTI Rouen | C161: CTI | D161: M
A162: CTI Sud Toulouse | C162: CTI | D162: M
A163: CICOA | C163: CTI | D163: M
A164: GESTIF | C164: CTI | D164: M

Sheet Table de prix_Lot1
E1: A
A2: Unités d'œuvre | B2: Modules d'audit | C2: Niveau de profondeur de l'audit | E2: Prix forfaitaire HT | F2: TVA | G2: Prix forfaitaire TTC
A3: UO 1 | B3: Module 1 | C3: Audité | D3: =CONCATENATE(B3,C3) -> Module 1Audité | E3: 20444 | F3: 0.2 | G3: =E3*(1+F3) -> 24532.8
A4: UO 2.1 | B4: Module 2 | C4: Niveau 1 | D4: =CONCATENATE(B4,C4) -> Module 2Niveau 1 | E4: 4114 | F4: 0.2 | G4: =E4*(1+F4) -> 4936.8
A5: UO 2.2 | C5: Niveau 2 | D5: =CONCATENATE(B4,C5) -> Module 2Niveau 2 | E5: 4114 | F5: 0.2 | G5: 4936.8
A6: UO 3.1 | B6: Module 3 | C6: Niveau 1 | D6: =CONCATENATE(B6,C6) -> Module 3Niveau 1 | E6: 2447 | F6: 0.2 | G6: 2936.4
A7: UO 3.2 | C7: Niveau 2 | D7: =CONCATENATE(B6,C7) -> Module 3Niveau 2 | E7: 3671 | F7: 0.2 | G7: 4405.2
A8: UO 4.1 | B8: Module 4 | C8: Niveau 1 | D8: =CONCATENATE(B8,C8) -> Module 4Niveau 1 | E8: 2575 | F8: 0.2 | G8: 3090
A9: UO 4.2 | C9: Niveau 2 | D9: =CONCATENATE(B8,C9) -> Module 4Niveau 2 | E9: 2575 | F9: 0.2 | G9: 3090
A10: UO 5.1 | B10: Module 5 | C10: Niveau 1 | D10: =CONCATENATE(B10,C10) -> Module 5Niveau 1 | E10: 4655 | F10: 0.2 | G10: 5586
A11: UO 5.2 | C11: Niveau 2 | D11: =CONCATENATE(B10,C11) -> Module 5Niveau 2 | E11: 4655 | F11: 0.2 | G11: 5586
A12: UO 6.1 | B12: Module 6 | C12: Niveau 1 | D12: =CONCATENATE(B12,C12) -> Module 6Niveau 1 | E12: 2888 | F12: 0.2 | G12: 3465.6
A13: UO 6.2 | C13: Niveau 2 | D13: =CONCATENATE(B12,C13) -> Module 6Niveau 2 | E13: 4332 | F13: 0.2 | G13: 5198.4
A14: UO 7.1 | B14: Module 7 | C14: Niveau 1 | D14: =CONCATENATE(B14,C14) -> Module 7Niveau 1 | E14: 9599 | F14: 0.2 | G14: 11518.8
A15: UO 7.2 | C15: Niveau 2 | D15: =CONCATENATE(B14,C15) -> Module 7Niveau 2 | E15: 6931 | F15: 0.2 | G15: 8317.2
A16: UO 8.1 | B16: Module 8 | C16: Niveau 1 | D16: =CONCATENATE(B16,C16) -> Module 8Niveau 1 | E16: 5149 | F16: 0.2 | G16: 6178.8
A17: UO 8.2 | C17: Niveau 2 | D17: =CONCATENATE(B16,C17) -> Module 8Niveau 2 | E17: 5149 | F17: 0.2 | G17: 6178.8
A18: UO 9 | B18: Module 9 | C18: Audité | D18: =CONCATENATE(B18,C18) -> Module 9Audité | E18: 9154 | F18: 0.2 | G18: 10984.8
A19: UO 10 | B19: Module 10 | C19: Audité | D19: =CONCATENATE(B19,C19) -> Module 10Audité | E19: 4577 | F19: 0.2 | G19: 5492.4
A20: UO 11 | B20: Module 11 | C20: Audité | D20: =CONCATENATE(B20,C20) -> Module 11Audité | E20: 4750 | F20: 0.2 | G20: 5700
E22: B
A23: Unités d'œuvre | B23: Modules d'audit | C23: Niveau de profondeur de l'audit | E23: Prix forfaitaire HT | F23: TVA | G23: Prix forfaitaire TTC
A24: UO 12 | B24: Module 1 | C24: Audité | D24: =CONCATENATE(B24,C24) -> Module 1Audité | E24: 15960 | F24: 0.2 | G24: =E24*(1+F24) -> 19152
A25: 13.1 | B25: Module 2 | C25: Niveau 1 | D25: =CONCATENATE(B25,C25) -> Module 2Niveau 1 | E25: 3040 | F25: 0.2 | G25: =E25*(1+F25) -> 3648
A26: 13.2 | C26: Niveau 2 | D26: =CONCATENATE(B25,C26) -> Module 2Niveau 2 | E26: 3040 | F26: 0.2 | G26: 3648
A27: 14.1 | B27: Module 3 | C27: Niveau 1 | D27: =CONCATENATE(B27,C27) -> Module 3Niveau 1 | E27: 1824 | F27: 0.2 | G27: 2188.8
A28: 14.2 | C28: Niveau 2 | D28: =CONCATENATE(B27,C28) -> Module 3Niveau 2 | E28: 2736 | F28: 0.2 | G28: 3283.2
A29: 15.1 | B29: Module 4 | C29: Niveau 1 | D29: =CONCATENATE(B29,C29) -> Module 4Niveau 1 | E29: 1919 | F29: 0.2 | G29: 2302.8
A30: 15.2 | C30: Niveau 2 | D30: =CONCATENATE(B29,C30) -> Module 4Niveau 2 | E30: 1919 | F30: 0.2 | G30: 2302.8
A31: 16.1 | B31: Module 5 | C31: Niveau 1 | D31: =CONCATENATE(B31,C31) -> Module 5Niveau 1 | E31: 3420 | F31: 0.2 | G31: 4104
A32: 16.2 | C32: Niveau 2 | D32: =CONCATENATE(B31,C32) -> Module 5Niveau 2 | E32: 3420 | F32: 0.2 | G32: 4104
A33: 17.1 | B33: Module 6 | C33: Niveau 1 | D33: =CONCATENATE(B33,C33) -> Module 6Niveau 1 | E33: 2075 | F33: 0.2 | G33: 2490
A34: 17.2 | C34: Niveau 2 | D34: =CONCATENATE(B33,C34) -> Module 6Niveau 2 | E34: 3112 | F34: 0.2 | G34: 3734.4
A35: 18.1 | B35: Module 7 | C35: Niveau 1 | D35: =CONCATENATE(B35,C35) -> Module 7Niveau 1 | E35: 7021 | F35: 0.2 | G35: 8425.2
A36: 18.2 | C36: Niveau 2 | D36: =CONCATENATE(B35,C36) -> Module 7Niveau 2 | E36: 5072 | F36: 0.2 | G36: 6086.4
A37: 19.1 | B37: Module 8 | C37: Niveau 1 | D37: =CONCATENATE(B37,C37) -> Module 8Niveau 1 | E37: 3810 | F37: 0.2 | G37: 4572
A38: 19.2 | C38: Niveau 2 | D38: =CONCATENATE(B37,C38) -> Module 8Niveau 2 | E38: 3810 | F38: 0.2 | G38: 4572
A39: UO 20 | B39: Module 9 | C39: Audité | D39: =CONCATENATE(B39,C39) -> Module 9Audité | E39: 6756 | F39: 0.2 | G39: 8107.2
A40: UO 21 | B40: Module 10 | C40: Audité | D40: =CONCATENATE(B40,C40) -> Module 10Audité | E40: 3378 | F40: 0.2 | G40: 4053.6
A41: UO 22 | B41: Module 11 | C41: Audité | D41: =CONCATENATE(B41,C41) -> Module 11Audité | E41: 4750 | F41: 0.2 | G41: 5700
E43: C
A44: Unités d'œuvre | B44: Modules d'audit | C44: Niveau de profondeur de l'audit | E44: Prix forfaitaire HT | F44: TVA | G44: Prix forfaitaire TTC
A45: UO 23 | B45: Module 1 | C45: Audité | D45: =CONCATENATE(B45,C45) -> Module 1Audité | E45: 15960 | F45: 0.2 | G45: =E45*(1+F45) -> 19152
A46: UO 24.1 | B46: Module 2 | C46: Niveau 1 | D46: =CONCATENATE(B46,C46) -> Module 2Niveau 1 | E46: 3667 | F46: 0.2 | G46: 4400.4
A47: UO 24.2 | C47: Niveau 2 | D47: =CONCATENATE(B46,C47) -> Module 2Niveau 2 | E47: 3667 | F47: 0.2 | G47: 4400.4
A48: UO 25.1 | B48: Module 3 | C48: Niveau 1 | D48: =CONCATENATE(B48,C48) -> Module 3Niveau 1 | E48: 2166 | F48: 0.2 | G48: 2599.2
A49: UO 25.2 | C49: Niveau 2 | D49: =CONCATENATE(B48,C49) -> Module 3Niveau 2 | E49: 3249 | F49: 0.2 | G49: 3898.8
A50: UO 26.1 | B50: Module 4 | C50: Niveau 1 | D50: =CONCATENATE(B50,C50) -> Module 4Niveau 1 | E50: 2176 | F50: 0.2 | G50: 2611.2
A51: UO 26.2 | C51: Niveau 2 | D51: =CONCATENATE(B50,C51) -> Module 4Niveau 2 | E51: 2176 | F51: 0.2 | G51: 2611.2
A52: UO 27.1 | B52: Module 5 | C52: Niveau 1 | D52: =CONCATENATE(B52,C52) -> Module 5Niveau 1 | E52: 4104 | F52: 0.2 | G52: 4924.8
A53: UO 27.2 | C53: Niveau 2 | D53: =CONCATENATE(B52,C53) -> Module 5Niveau 2 | E53: 4104 | F53: 0.2 | G53: 4924.8
A54: UO 28.1 | B54: Module 6 | C54: Niveau 1 | D54: =CONCATENATE(B54,C54) -> Module 6Niveau 1 | E54: 2512 | F54: 0.2 | G54: 3014.4
A55: UO 28.2 | C55: Niveau 2 | D55: =CONCATENATE(B54,C55) -> Module 6Niveau 2 | E55: 3768 | F55: 0.2 | G55: 4521.6
A56: UO 29.1 | B56: Module 7 | C56: Niveau 1 | D56: =CONCATENATE(B56,C56) -> Module 7Niveau 1 | E56: 8375 | F56: 0.2 | G56: 10050
A57: UO 29.2 | C57: Niveau 2 | D57: =CONCATENATE(B56,C57) -> Module 7Niveau 2 | E57: 6036 | F57: 0.2 | G57: 7243.2
A58: UO 30.1 | B58: Module 8 | C58: Niveau 1 | D58: =CONCATENATE(B58,C58) -> Module 8Niveau 1 | E58: 4551 | F58: 0.2 | G58: 5461.2
A59: UO 30.2 | C59: Niveau 2 | D59: =CONCATENATE(B58,C59) -> Module 8Niveau 2 | E59: 4551 | F59: 0.2 | G59: 5461.2
A60: UO 32 | B60: Module 9 | C60: Audité | D60: =CONCATENATE(B60,C60) -> Module 9Audité | E60: 8531 | F60: 0.2 | G60: 10237.2
A61: UO 33 | B61: Module 10 | C61: Audité | D61: =CONCATENATE(B61,C61) -> Module 10Audité | E61: 4266 | F61: 0.2 | G61: 5119.2
A62: UO 34 | B62: Module 11 | C62: Audité | D62: =CONCATENATE(B62,C62) -> Module 11Audité | E62: 4750 | F62: 0.2 | G62: 5700
A64: Unités d'œuvre | B64: Modules d'audit | C64: Niveau de profondeur de l'audit | E64: Prix forfaitaire HT | F64: TVA | G64: Prix forfaitaire TTC
A65: UO 34.1 | B65: Module 7.1 | C65: Niveau 1 | E65: 3360 | F65: 0.2 | G65: =E65*(1+F65) -> 4032
A66: UO 34.2 | C66: Niveau 2 | E66: 2310 | F66: 0.2 | G66: 2772
A67: UO 35.1 | B67: Module 7.2 | C67: Niveau 1 | E67: 2400 | F67: 0.2 | G67: 2880
A68: UO 35.2 | C68: Niveau 2 | E68: 2310 | F68: 0.2 | G68: 2772
A69: UO 36.1 | B69: Module 7.3 | C69: Niveau 1 | E69: 3840 | F69: 0.2 | G69: 4608
A70: UO 36.2 | C70: Niveau 2 | E70: 2310 | F70: 0.2 | G70: 2772
C72: DRSM
A73: Unités d'œuvre | B73: Modules d'audit | C73: Niveau de profondeur de l'audit | E73: Prix forfaitaire HT | F73: TVA | G73: Prix forfaitaire TTC
A74: UO 37 | B74: Module 1 | C74: Audité | D74: Module 1Audité | E74: 14298 | F74: 0.2 | G74: =E74*(1+F74) -> 17157.6
A75: UO 38 | B75: Module 2 | C75: Audité | D75: Module 2Audité | E75: 2641 | F75: 0.2 | G75: =E75*(1+F75) -> 3169.2
A76: UO 39 | B76: Module 3 | C76: Audité | D76: Module 3Audité | E76: 2033 | F76: 0.2 | G76: 2439.6
A77: UO 40 | B77: Module 4 | C77: Audité | D77: Module 4Audité | E77: 1710 | F77: 0.2 | G77: 2052
A78: UO 41 | B78: Module 6 | C78: Audité | D78: Module 6Audité | E78: 2328 | F78: 0.2 | G78: 2793.6
A79: UO 42 | B79: Module 7 | C79: Audité | D79: Module 7Audité | E79: 5073 | F79: 0.2 | G79: 6087.6
A80: UO 43 | B80: Module 8 | C80: Audité | D80: Module 8Audité | E80: 3230 | F80: 0.2 | G80: 3876
A81: UO 44 | B81: Module 9 | C81: Audité | D81: Module 9Audité | E81: 5654 | F81: 0.2 | G81: 6784.8
A82: UO 45 | B82: Module 10 | C82: Audité | D82: Module 10Audité | E82: 2827 | F82: 0.2 | G82: 3392.4
A83: UO 46 | B83: Module 11 | C83: Audité | D83: Module 11Audité | E83: 4750 | F83: 0.2 | G83: 5700
C85: CARSAT
A86: Unités d'œuvre | B86: Modules d'audit | C86: Niveau de profondeur de l'audit | E86: Prix forfaitaire HT | F86: TVA | G86: Prix forfaitaire TTC
A87: UO 47 | B87: Module 1 | C87: Audité | D87: =CONCATENATE(B87,C87) -> Module 1Audité | E87: 9690 | F87: 0.2 | G87: =E87*(1+F87) -> 11628
A88: UO 48 | B88: Module 2 | C88: Audité | D88: Module 2Audité | E88: 1729 | F88: 0.2 | G88: 2074.8
A89: UO 49 | B89: Module 3 | C89: Audité | D89: Module 3Audité | E89: 1273 | F89: 0.2 | G89: 1527.6
A90: UO 50 | B90: Module 4 | C90: Audité | D90: Module 4Audité | E90: 1045 | F90: 0.2 | G90: 1254
A91: UO 51 | B91: Module 5 | C91: Audité | D91: Module 5Audité | E91: 1957 | F91: 0.2 | G91: 2348.4
A92: UO 52 | B92: Module 6 | C92: Audité | D92: Module 6Audité | E92: 1501 | F92: 0.2 | G92: 1801.2
A93: UO 53 | B93: Module 7 | C93: Audité | D93: Module 7Audité | E93: 3553 | F93: 0.2 | G93: 4263.6
A94: UO 54 | B94: Module 8 | C94: Audité | D94: Module 8Audité | E94: 2413 | F94: 0.2 | G94: 2895.6
A95: UO 55 | B95: Module 9 | C95: Audité | D95: Module 9Audité | E95: 5366 | F95: 0.2 | G95: 6439.2
A96: UO 56 | B96: Module 10 | C96: Audité | D96: Module 10Audité | E96: 2683 | F96: 0.2 | G96: 3219.6
A97: UO 57 | B97: Module 11 | C97: Audité | D97: Module 11Audité | E97: 4750 | F97: 0.2 | G97: 5700
C99: UGECAM
A100: Unités d'œuvre | B100: Modules d'audit | C100: Niveau de profondeur de l'audit | E100: Prix forfaitaire HT | F100: TVA | G100: Prix forfaitaire TTC
A101: UO 58 | B101: Module 1 | C101: Audité | D101: =CONCATENATE(B34:B101,"Audité") -> Module 1Audité | E101: 10545 | F101: 0.2 | G101: =E101*(1+F101) -> 12654
A102: UO 59 | B102: Module 2 | C102: Audité | D102: Module 2Audité | E102: 4427 | F102: 0.2 | G102: 5312.4
A103: UO 60 | B103: Module 3 | C103: Audité | D103: Module 3Audité | E103: 3990 | F103: 0.2 | G103: 4788
A104: UO 61 | B104: Module 4 | C104: Audité | D104: Module 4Audité | E104: 3097 | F104: 0.2 | G104: 3716.4
A105: UO 62 | B105: Module 5 | C105: Audité | D105: Module 5Audité | E105: 4788 | F105: 0.2 | G105: 5745.6
A106: UO 63 | B106: Module 9 | C106: Audité | D106: Module 9Audité | E106: 5753 | F106: 0.2 | G106: 6903.6
A107: UO 64 | B107: Module 10 | C107: Audité | D107: Module 10Audité | E107: 2877 | F107: 0.2 | G107: 3452.4
A108: UO 65 | B108: Module 11 | C108: Audité | D108: Module 11Audité | E108: 4750 | F108: 0.2 | G108: 5700
C110: Metropole
A111: Unités d'œuvre | B111: Libellé | C111: Prix forfaitaire HT | E111: TVA | F111: Prix forfaitaire TTC
A112: UO 66 | B112: Frais de mission hors transport (avec hébergement) | C112: 150 | E112: 0.2 | F112: =C112*(1+E112) -> 180
A113: UO 67 | B113: Frais de mission hors transport (sans hébergement) | C113: 50 | E113: 0.2 | F113: =C113*(1+E113) -> 60
A114: UO 68 | B114: Frais de Transport (en Ile de France) | C114: 0 | E114: 0.2 | F114: =C114*(1+E114) -> 0
A115: UO 69 | B115: Frais de Transport (hors Ile de France) | C115: 50 | E115: 0.2 | F115: =C115*(1+E115) -> 60
C117: DOM et Corse
A118: Unités d'œuvre | B118: Libellé | C118: Prix forfaitaire HT | E118: TVA | F118: Prix forfaitaire TTC
A119: UO 70 | B119: Frais de mission hors transport (avec hébergement) | C119: 150 | E119: 0.2 | F119: =C119*(1+E119) -> 180
A120: UO 71 | B120: Frais de Transport | C120: 2200 | E120: 0.2 | F120: =C120*(1+E120) -> 2640

Sheet Table de prix_Lot2
E1: CTI PRESTATIONS | H1: CTI MISSIONS NATIONALES | K1: CENTRES NATIONAUX
A2: Unités d'œuvre | B2: Modules d'audit | C2: Niveau de profondeur de l'audit | E2: Prix forfaitaire HT | F2: TVA | G2: Prix forfaitaire TTC | H2: Prix forfaitaire HT | I2: TVA | J2: Prix forfaitaire TTC | K2: Prix forfaitaire HT | L2: TVA | M2: Prix forfaitaire TTC
A3: UO 1 | B3: Module 1 | C3: Audité | D3: =CONCATENATE(B3,C3) -> Module 1Audité | E3: 23564.3 | F3: 0.2 | G3: =E3*(1+F3) -> 28277.16 | H3: 25355.5 | I3: 0.2 | J3: =H3*(1+I3) -> 30426.6 | K3: 23564.3 | L3: 0.2 | M3: =K3*(1+L3) -> 28277.16
A4: UO 2.1 | B4: Module 2 | C4: Niveau 1 | D4: =CONCATENATE(B4,C4) -> Module 2Niveau 1 | E4: 9246.6 | F4: 0.2 | G4: =E4*(1+F4) -> 11095.92 | H4: 9246.6 | I4: 0.2 | J4: =H4*(1+I4) -> 11095.92
A5: UO 2.2 | C5: Niveau 2 | D5: =CONCATENATE(B4,C5) -> Module 2Niveau 2 | E5: 10886.55 | F5: 0.2 | G5: 13063.86 | H5: 10886.55 | I5: 0.2 | J5: 13063.86
A6: UO 3.1 | B6: Module 3 | C6: Niveau 1 | D6: Module 3Niveau 1 | K6: 8351 | L6: 0.2 | M6: =K6*(1+L6) -> 10021.2
A7: UO 3.2 | C7: Niveau 2 | D7: =CONCATENATE(B6,C7) -> Module 3Niveau 2 | K7: 10142.2 | L7: 0.2 | M7: 12170.64
A8: UO 4.1 | B8: Module 4 | C8: Niveau 1 | D8: Module 4Niveau 1 | E8: 9246.6 | F8: 0.2 | G8: 11095.92 | H8: 9246.6 | I8: 0.2 | J8: 11095.92 | K8: 9246.6 | L8: 0.2 | M8: 11095.92
A9: UO 4.2 | C9: Niveau 2 | D9: =CONCATENATE(B8,C9) -> Module 4Niveau 2 | E9: 10886.55 | F9: 0.2 | G9: 13063.86 | H9: 10886.55 | I9: 0.2 | J9: 13063.86 | K9: 10886.55 | L9: 0.2 | M9: 13063.86
A10: UO 5.1 | B10: Module 5 | C10: Niveau 1 | D10: Module 5Niveau 1 | E10: 7606.65 | F10: 0.2 | G10: 9127.98 | H10: 7606.65 | I10: 0.2 | J10: 9127.98 | K10: 7606.65 | L10: 0.2 | M10: 9127.98
A11: UO 5.2 | C11: Niveau 2 | D11: =CONCATENATE(B10,C11) -> Module 5Niveau 2 | E11: 8351 | F11: 0.2 | G11: 10021.2 | H11: 8351 | I11: 0.2 | J11: 10021.2 | K11: 8351 | L11: 0.2 | M11: 10021.2
A12: UO 6.1 | B12: Module 6 | C12: Niveau 1 | D12: Module 6Niveau 1 | E12: 10886.55 | F12: 0.2 | G12: 13063.86 | H12: 12677.75 | I12: 0.2 | J12: 15213.3 | K12: 10886.55 | L12: 0.2 | M12: 13063.86
A13: UO 6.2 | C13: Niveau 2 | D13: =CONCATENATE(B12,C13) -> Module 6Niveau 2 | E13: 12526.5 | F13: 0.2 | G13: 15031.8 | H13: 13831.45 | I13: 0.2 | J13: 16597.74 | K13: 12526.5 | L13: 0.2 | M13: 15031.8
A14: UO 7 | B14: Module 7 | C14: Audité | D14: Module 7Audité | E14: 3840.5 | F14: 0.2 | G14: 4608.6 | H14: 3840.5 | I14: 0.2 | J14: 4608.6 | K14: 3840.5 | L14: 0.2 | M14: 4608.6
A15: UO 8 | B15: Module 8 | C15: Audité | D15: Module 8Audité | E15: 2126.2 | F15: 0.2 | G15: 2551.44 | H15: 2126.2 | I15: 0.2 | J15: 2551.44 | K15: 2126.2 | L15: 0.2 | M15: 2551.44
A16: UO 9 | B16: Module 9 | C16: Audité | D16: Module 9Audité | E16: 9804.65 | F16: 0.2 | G16: 11765.58 | H16: 9804.65 | I16: 0.2 | J16: 11765.58 | K16: 9804.65 | L16: 0.2 | M16: 11765.58
E18: CTI MISSIONS NATIONALES
A19: Unités d'œuvre | B19: Modules d'audit | C19: Niveau de profondeur de l'audit | E19: Prix forfaitaire HT | F19: TVA | G19: Prix forfaitaire TTC
A20: UO 1 | B20: Module 1 | C20: Audité | D20: =CONCATENATE(B20,C20) -> Module 1Audité | E20: 25355.5 | F20: 0.2 | G20: =E20*(1+F20) -> 30426.6
A21: UO 2.1 | B21: Module 2 | C21: Niveau 1 | D21: =CONCATENATE(B21,C21) -> Module 2Niveau 1 | E21: 9246.6 | F21: 0.2 | G21: =E21*(1+F21) -> 11095.92
A22: UO 2.2 | C22: Niveau 2 | D22: =CONCATENATE(B21,C22) -> Module 2Niveau 2 | E22: 10886.55 | F22: 0.2 | G22: 13063.86
A23: UO 3.1 | B23: Module 3 | C23: Niveau 1 | D23: Module 3Niveau 1
A24: UO 3.2 | C24: Niveau 2 | D24: =CONCATENATE(B23,C24) -> Module 3Niveau 2
A25: UO 4.1 | B25: Module 4 | C25: Niveau 1 | D25: Module 4Niveau 1 | E25: 9246.6 | F25: 0.2 | G25: =E25*(1+F25) -> 11095.92
A26: UO 4.2 | C26: Niveau 2 | D26: =CONCATENATE(B25,C26) -> Module 4Niveau 2 | E26: 10886.55 | F26: 0.2 | G26: 13063.86
A27: UO 5.1 | B27: Module 5 | C27: Niveau 1 | D27: Module 5Niveau 1 | E27: 7606.65 | F27: 0.2 | G27: 9127.98
A28: UO 5.2 | C28: Niveau 2 | D28: =CONCATENATE(B27,C28) -> Module 5Niveau 2 | E28: 8351 | F28: 0.2 | G28: 10021.2
A29: UO 6.1 | B29: Module 6 | C29: Niveau 1 | D29: Module 6Niveau 1 | E29: 12677.75 | F29: 0.2 | G29: 15213.3
A30: UO 6.2 | C30: Niveau 2 | D30: =CONCATENATE(B29,C30) -> Module 6Niveau 2 | E30: 13831.45 | F30: 0.2 | G30: 16597.74
A31: UO 7 | B31: Module 7 | C31: Audité | D31: Module 7Audité | E31: 3840.5 | F31: 0.2 | G31: 4608.6
A32: UO 8 | B32: Module 8 | C32: Audité | D32: Module 8Audité | E32: 2126.2 | F32: 0.2 | G32: 2551.44
A33: UO 9 | B33: Module 9 | C33: Audité | D33: Module 9Audité | E33: 9804.65 | F33: 0.2 | G33: 11765.58
E35: CENTRES NATIONAUX
A36: Unités d'œuvre | B36: Modules d'audit | C36: Niveau de profondeur de l'audit | E36: Prix forfaitaire HT | F36: TVA | G36: Prix forfaitaire TTC
A37: UO 1 | B37: Module 1 | C37: Audité | D37: =CONCATENATE(B37,C37) -> Module 1Audité | E37: 23564.3 | F37: 0.2 | G37: =E37*(1+F37) -> 28277.16
A38: UO 2.1 | B38: Module 2 | C38: Niveau 1 | D38: =CONCATENATE(B38,C38) -> Module 2Niveau 1
A39: UO 2.2 | C39: Niveau 2 | D39: =CONCATENATE(B38,C39) -> Module 2Niveau 2
A40: UO 3.1 | B40: Module 3 | C40: Niveau 1 | D40: Module 3Niveau 1 | E40: 8351 | F40: 0.2 | G40: =E40*(1+F40) -> 10021.2
A41: UO 3.2 | C41: Niveau 2 | D41: =CONCATENATE(B40,C41) -> Module 3Niveau 2 | E41: 10142.2 | F41: 0.2 | G41: 12170.64
A42: UO 4.1 | B42: Module 4 | C42: Niveau 1 | D42: Module 4Niveau 1 | E42: 9246.6 | F42: 0.2 | G42: 11095.92
A43: UO 4.2 | C43: Niveau 2 | D43: =CONCATENATE(B42,C43) -> Module 4Niveau 2 | E43: 10886.55 | F43: 0.2 | G43: 13063.86
A44: UO 5.1 | B44: Module 5 | C44: Niveau 1 | D44: Module 5Niveau 1 | E44: 7606.65 | F44: 0.2 | G44: 9127.98
A45: UO 5.2 | C45: Niveau 2 | D45: =CONCATENATE(B44,C45) -> Module 5Niveau 2 | E45: 8351 | F45: 0.2 | G45: 10021.2
A46: UO 6.1 | B46: Module 6 | C46: Niveau 1 | D46: Module 6Niveau 1 | E46: 10886.55 | F46: 0.2 | G46: 13063.86
A47: UO 6.2 | C47: Niveau 2 | D47: =CONCATENATE(B46,C47) -> Module 6Niveau 2 | E47: 12526.5 | F47: 0.2 | G47: 15031.8
A48: UO 7 | B48: Module 7 | C48: Audité | D48: Module 7Audité | E48: 3840.5 | F48: 0.2 | G48: 4608.6
A49: UO 8 | B49: Module 8 | C49: Audité | D49: Module 8Audité | E49: 2126.2 | F49: 0.2 | G49: 2551.44
A50: UO 9 | B50: Module 9 | C50: Audité | D50: Module 9Audité | E50: 9804.65 | F50: 0.2 | G50: 11765.58
A52: Unités d'œuvre | B52: Libellé | C52: Prix forfaitaire HT | E52: TVA | F52: Prix forfaitaire TTC
A53: UO 10 | B53: Frais de mission hors transport (avec hébergement) | C53: 100 | E53: 0.2 | F53: =C53*(1+E53) -> 120
A54: UO 11 | B54: Frais de mission hors transport (sans hébergement) | C54: 20 | E54: 0.2 | F54: =C54*(1+E54) -> 24
A55: UO 12 | B55: Frais de Transport (en Ile de France) | C55: 20 | E55: 0.2 | F55: =C55*(1+E55) -> 24
A56: UO 13 | B56: Frais de Transport (hors Ile de France) | C56: 150 | E56: 0.2 | F56: =C56*(1+E56) -> 180
